[Event "58th BRA-chW 2019"]
[Site "Rio de Janeiro"]
[Date "2019.02.16"]
[Round "1.1"]
[White "Bonfim, Regina Rodrigues"]
[Black "Terao, Juliana Sayumi"]
[Result "0-1"]
[ECO "D71"]
[WhiteElo "1713"]
[BlackElo "2241"]
[Annotator "ChessBase"]
[PlyCount "180"]
[EventDate "2019.02.16"]
[EventType "k.o."]
[EventCountry "BRA"]
[SourceTitle "playchess.com"]
[Source "ChessBase"]
[SourceQuality "1"]
[TimeControl "5400+30"]

1. d4 {[%emt 0:00:00]} Nf6 {[%emt 0:00:00]} 2. c4 {[%emt 0:00:15]} g6 {[%emt 0:00:00]} 3. g3 {[%emt 0:00:10]} Bg7 {[%emt 0:01:31]} 4. Bg2 {[%emt 0:00:07]} d5 {[%emt 0:00:42]} 5. cxd5 {[%emt 0:02:33]} Nxd5 {[%emt 0:00:07]} 6. Nc3 {[%emt 0:00:11]} Nb6 {[%emt 0:02:02]} 7. e3 {[%emt 0:00:52]} O-O {[%emt 0:01:27]} 8. Nge2 {[%emt 0:01:00]} c6 {[%emt 0:08:09]} 9. O-O {[%emt 0:00:23]} Na6 {[%emt 0:11:08]} 10. a3 {[%emt 0:00:28]} Bd7 {[%emt 0:07:27]} 11. e4 {[%emt 0:07:12]} c5 {[%emt 0:13:07]} 12. d5 {[%emt 0:00:19]} e6 {[%emt 0:01:07]} 13. Ra2 {[%emt 0:16:36]} Rc8 {[%emt 0:04:39]} 14. b3 {[%emt 0:00:12]} Nc7 {[%emt 0:13:39]} 15. Be3 {[%emt 0:02:47]} Nb5 {[%emt 0:08:16]} 16. Nxb5 {[%emt 0:00:40]} Bxb5 {[%emt 0:00:04]} 17. a4 {[%emt 0:02:26]} Bd7 {[%emt 0:02:41]} 18. Rd2 {[%emt 0:01:52]} e5 {[%emt 0:05:01]} 19. a5 {[%emt 0:05:28]} Na8 {[%emt 0:00:04]} 20. Ra2 {[%emt 0:00:30]} Re8 {[%emt 0:03:09]} 21. Qd2 {[%emt 0:00:41]} b6 {[%emt 0:00:52]} 22. Rc1 {[%emt 0:03:06]} Bf8 {[%emt 0:02:37]} 23. Rac2 {[%emt 0:03:38]} Nc7 {[%emt 0:00:34]} 24. axb6 {[%emt 0:00:46]} axb6 {[%emt 0:00:05]} 25. Nc3 {[%emt 0:01:10]} Na6 {[%emt 0:00:40]} 26. Ra2 {[%emt 0:00:49]} Nb4 {[%emt 0:00:17]} 27. Ra7 {[%emt 0:02:24]} Bd6 {[%emt 0:01:34]} 28. Rca1 {[%emt 0:00:28]} Rc7 {[%emt 0:02:11]} 29. R7a3 {[%emt 0:05:48]} Rc8 {[%emt 0:01:56]} 30. Bf1 {[%emt 0:00:36]} f5 {[%emt 0:01:51]} 31. Bg5 {[%emt 0:00:58]} Be7 {[%emt 0:00:09]} 32. Bxe7 {[%emt 0:00:47]} Rxe7 {[%emt 0:00:11]} 33. Bc4 {[%emt 0:02:57]} Kh8 {[%emt 0:00:38]} 34. f3 {[%emt 0:00:36]} fxe4 {[%emt 0:01:23]} 35. fxe4 {[%emt 0:01:06]} Rf7 {[%emt 0:00:07]} 36. Rf1 {[%emt 0:00:27]} Rxf1+ {[%emt 0:01:42]} 37. Bxf1 {[%emt 0:00:03]} Kg7 {[%emt 0:02:24]} 38. Ra1 {[%emt 0:01:58]} Ra8 {[%emt 0:00:21]} 39. Rxa8 {[%emt 0:02:23]} Qxa8 {[%emt 0:00:04]} 40. Qb2 {[%emt 0:00:17]} Qd8 {[%emt 0:00:48]} 41. Na2 {[%emt 0:01:55]} Nxa2 {[%emt 0:00:59]} 42. Qxa2 {[%emt 0:00:02]} Qg5 {[%emt 0:01:19]} 43. Qe2 {[%emt 0:08:20]} Bg4 {[%emt 0:00:51]} 44. Qe1 {[%emt 0:00:41]} Kf7 {[%emt 0:01:19]} 45. Bb5 {[%emt 0:04:30]} Ke7 {[%emt 0:00:44]} 46. Bc4 {[%emt 0:01:19]} Bd7 {[%emt 0:00:33]} 47. Bf1 {[%emt 0:00:24]} Qf6 {[%emt 0:01:08]} 48. Qf2 {[%emt 0:00:26]} Qg5 {[%emt 0:00:07]} 49. Qe1 {[%emt 0:00:09]} Qg4 {[%emt 0:00:15]} 50. Qe2 {[%emt 0:01:12]} Qg5 {[%emt 0:00:22]} 51. Qe1 {[%emt 0:00:21]} Bg4 {[%emt 0:00:55]} 52. Bg2 {[%emt 0:01:42]} Qf6 {[%emt 0:00:26]} 53. Qf2 {[%emt 0:00:35]} Qxf2+ {[%emt 0:00:08]} 54. Kxf2 {[%emt 0:00:04]} Bd1 {[%emt 0:00:05]} 55. Bf1 {[%emt 0:00:37]} Bxb3 {[%emt 0:00:06]} 56. Ke3 {[%emt 0:00:09]} Ba4 {[%emt 0:00:20]} 57. Kd2 {[%emt 0:00:29]} Kd6 {[%emt 0:00:19]} 58. Kc3 {[%emt 0:00:20]} b5 {[%emt 0:00:53]} 59. Bh3 {[%emt 0:00:15]} Kc7 {[%emt 0:00:40]} 60. Be6 {[%emt 0:00:11]} Bd1 {[%emt 0:00:39]} 61. Bg8 {[%emt 0:00:21]} h6 {[%emt 0:00:34]} 62. Bf7 {[%emt 0:00:12]} g5 {[%emt 0:00:10]} 63. Be8 {[%emt 0:00:15]} Be2 {[%emt 0:00:22]} 64. Kd2 {[%emt 0:00:39]} Bc4 {[%emt 0:00:06]} 65. Kc3 {[%emt 0:00:18]} Kd6 {[%emt 0:00:07]} 66. Bg6 {[%emt 0:02:21]} Be2 {[%emt 0:01:23]} 67. Kd2 {[%emt 0:00:13]} Bg4 {[%emt 0:01:47]} 68. Be8 {[%emt 0:00:29]} b4 {[%emt 0:00:05]} 69. Kc2 {[%emt 0:00:42]} c4 {[%emt 0:00:26]} 70. Kd2 {[%emt 0:02:00]} Kc5 {[%emt 0:00:29]} 71. Bf7 {[%emt 0:00:21]} Bd7 {[%emt 0:00:36]} 72. Bg8 {[%emt 0:02:03]} Kd4 {[%emt 0:01:21]} 73. Be6 {[%emt 0:00:22]} c3+ {[%emt 0:00:06]} 74. Kc1 {[%emt 0:00:01]} Ba4 {[%emt 0:00:17]} 75. d6 {[%emt 0:00:03]} Kxe4 {[%emt 0:00:52]} 76. d7 {[%emt 0:00:48]} Bxd7 {[%emt 0:00:05]} 77. Bxd7 {[%emt 0:00:01]} Kf3 {[%emt 0:00:39]} 78. Kc2 {[%emt 0:02:56]} e4 {[%emt 0:00:45]} 79. Bc6 {[%emt 0:00:27]} Ke3 {[%emt 0:00:26]} 80. Bb7 {[%emt 0:03:43]} Kd4 {[%emt 0:00:06]} 81. Ba6 {[%emt 0:02:15]} Ke3 {[%emt 0:00:49]} 82. Bb7 {[%emt 0:00:01]} h5 {[%emt 0:00:23]} 83. Bc6 {[%emt 0:00:42]} Kf3 {[%emt 0:00:37]} 84. Bb7 {[%emt 0:02:37]} Kg2 {[%emt 0:00:47]} 85. Bxe4+ {[%emt 0:10:00]} Kxh2 {[%emt 0:02:20]} 86. Bg6 {[%emt 0:00:00]} Kxg3 {[%emt 0:00:00]} 87. Bxh5 {[%emt 0:00:00]} g4 {[%emt 0:00:00]} 88. Kb3 {[%emt 0:00:00]} Kf4 {[%emt 0:00:00]} 89. Be8 {[%emt 0:00:00]} g3 {[%emt 0:00:00]} 90. Bc6 {[%emt 0:00:00]} Ke3 {[%emt 0:00:00]} 0-1

[Event "58th BRA-chW 2019"]
[Site "Rio de Janeiro"]
[Date "2019.02.17"]
[Round "1.2"]
[White "Guimaraes, Artemis Pamela"]
[Black "Ribeiro, Regina"]
[Result "1-0"]
[ECO "B31"]
[WhiteElo "1939"]
[BlackElo "1876"]
[Annotator "NA"]
[PlyCount "73"]
[EventDate "2019.02.16"]
[EventType "k.o."]
[EventCountry "BRA"]
[SourceTitle "playchess.com"]
[Source "ChessBase"]
[SourceQuality "1"]
[TimeControl "5400+30"]

1. e4 {[%emt 0:00:00]} c5 {[%emt 0:16:09]} 2. Nf3 {[%emt 0:00:00]} Nc6 {[%emt 0:00:23]} 3. Bb5 {[%emt 0:00:00]} g6 {[%emt 0:00:16]} 4. Bxc6 {[%emt 0:00:09]} dxc6 {[%emt 0:01:06]} 5. d3 {[%emt 0:00:08]} Bg7 {[%emt 0:00:26]} 6. h3 {[%emt 0:00:07]} Qc7 {[%emt 0:03:01]} 7. Nc3 {[%emt 0:07:28]} Nf6 {[%emt 0:04:38]} 8. Be3 {[%emt 0:00:23] B31: Sicilian: 2...Nc6 3 Bb5 g6} b6 {[%emt 0:00:59]} 9. Qd2 {[%emt 0:00:42]} e5 {[%emt 0:03:39]} 10. Bh6 {[%emt 0:09:35]} O-O {[%emt 0:00:25]} 11. O-O-O {[%emt 0:08:41]} (11. Nh2 Re8 12. Bxg7 Kxg7 13. Ng4 Ng8 14. O-O-O Be6 15. Ne2 Rad8 {½-½ (52) Saric,I (2692)-Harff,M (2411) Germany 2018}) 11... Nd7 $146 {[%emt 0:05:55]} ({Predecessor:} 11... Be6 12. Bxg7 Kxg7 13. Qg5 Nd7 14. Nh2 f6 15. Qe3 b5 {½-½ (15) Martinovic,S (2438)-Nurkic,S (2379) Banja Junakovic/Vukovar 2010}) 12. h4 {[%emt 1:08:47]} f6 {[%emt 0:59:03]} 13. g4 {[%emt 0:00:30]} Rf7 {[%emt 0:00:30]} 14. Bxg7 {[%emt 0:00:30]} Kxg7 {[%emt 0:00:30]} 15. g5 {[%emt 0:00:30]} f5 {[%emt 0:00:30]} (15... Nf8 $16 {is a better defense.}) 16. h5 {[%emt 0:00:00]} f4 {[%emt 0:00:00]} 17. hxg6 {[%emt 0:00:00]} hxg6 {[%emt 0:00:00]} 18. Rh6 {[%emt 0:00:00]} Nf8 {[%emt 0:00:00]} 19. Rg1 {[%emt 0:00:00]} Be6 {[%emt 0:00:00]} 20. Nh4 {[%emt 0:00:00]} Rd7 $18 {[%emt 0:00:00]} 21. f3 {[%emt 0:00:00]} c4 {[%emt 0:00:00]} 22. Qh2 {[%emt 0:00:00]} cxd3 {[%emt 0:00:00]} 23. cxd3 {[%emt 0:04:00]} Bg8 {[%emt 0:04:00]} 24. Rh1 {[%emt 0:00:00]} Bh7 {[%emt 0:00:30]} 25. Nf5+ {[%emt 0:00:00]} Kg8 {[%emt 0:00:00]} 26. Nh4 {[%emt 0:00:00]} Rg7 {[%emt 0:00:00]} 27. Qc2 {[%emt 0:00:00]} Qe7 {[%emt 0:00:00]} 28. Qb3+ {[%emt 0:00:00]} Qe6 {[%emt 0:00:00]} 29. Qxe6+ {[%emt 0:00:00]} Nxe6 {[%emt 0:00:00]} 30. Nxg6 {[%emt 0:00:00]} Nxg5 {[%emt 0:00:00]} 31. Nxe5 {[%emt 0:00:00]} Re8 {[%emt 0:00:23]} 32. Ng4 {[%emt 0:00:00]} Rd8 {[%emt 0:01:03]} 33. Nf6+ {[%emt 0:00:00]} Kh8 {[%emt 0:01:22]} 34. R1h5 {[%emt 0:00:00]} Rf8 {[%emt 0:00:37]} 35. e5 {[%emt 0:00:00]} Rff7 {[%emt 0:00:51]} 36. Nce4 {[%emt 0:02:17]} Ne6 {[%emt 0:00:37]} 37. Nd6 {[%emt 0:00:25]} 1-0

[Event "58th BRA-chW 2019"]
[Site "Rio de Janeiro"]
[Date "2019.02.17"]
[Round "1.2"]
[White "Kanzler, Karina Daniela Ferr"]
[Black "Tamarozi, Isabelle"]
[Result "0-1"]
[ECO "A48"]
[WhiteElo "1913"]
[BlackElo "1937"]
[Annotator "NA"]
[PlyCount "134"]
[EventDate "2019.02.16"]
[EventType "k.o."]
[EventCountry "BRA"]
[SourceTitle "playchess.com"]
[Source "ChessBase"]
[SourceQuality "1"]
[TimeControl "5400+30"]

1. d4 {[%emt 0:00:00]} Nf6 {[%emt 0:00:00]} 2. Nf3 {[%emt 0:00:00]} g6 {[%emt 0:00:01]} 3. Bg5 {[%emt 0:00:06]} Bg7 {[%emt 0:00:28]} 4. c3 {[%emt 0:00:16]} d6 {[%emt 0:00:45]} 5. Nbd2 {[%emt 0:00:11]} O-O {[%emt 0:01:22]} 6. e4 {[%emt 0:00:28]} c5 {[%emt 0:07:10]} 7. Bd3 {[%emt 0:03:32]} a6 {[%emt 0:06:42] A48: 1 d4 Nf6 2 Nf3 g6: Torre, London and Colle Systems} (7... cxd4 8. Nxd4 h6 9. Bh4 Nc6 10. Nxc6 bxc6 11. f4 Qb6 12. Nc4 Qb8 13. Qe2 d5 14. Ne5 dxe4 15. Bc4 {0-1 (39) Dobrov,V (2499)-Lu,S (2612) Wijk aan Zee 2017}) 8. O-O {[%emt 0:00:50]} b5 {[%emt 0:02:25]} 9. Re1 {[%emt 0:01:48]} Bb7 {[%emt 0:05:10]} 10. Nf1 $146 {[%emt 0:02:47]} ({Predecessor:} 10. dxc5 dxc5 11. Qe2 h6 12. Bf4 Nh5 13. Be3 {½-½ (36) Sanuy Moncasi,A (1989)-Monfa Escola,R (1761) Almenar 2010}) 10... Qc7 {[%emt 0:04:10]} 11. Qd2 {[%emt 0:01:30]} Rd8 {[%emt 0:03:50]} 12. Bh6 {[%emt 0:01:16]} Bh8 {[%emt 0:02:38]} 13. Rad1 {[%emt 0:01:40]} Nbd7 {[%emt 0:03:47]} 14. Qg5 {[%emt 0:03:49]} Nf8 {[%emt 0:06:55]} 15. Ng3 {[%emt 0:05:28]} Qc8 {[%emt 0:08:22]} 16. Nf5 {[%emt 0:02:28]} Re8 {[%emt 0:04:56]} 17. e5 {[%emt 0:01:38]} Bxf3 {[%emt 0:04:21]} 18. gxf3 {[%emt 0:00:41]} Ne6 {[%emt 0:03:27] [#]} 19. Qg3 $2 {[%emt 0:03:43]} ({Only move:} 19. Qh4 $1 $18) 19... dxe5 {[%emt 0:01:42]} 20. dxe5 {[%emt 0:00:31]} Nh5 {[%emt 0:02:24]} 21. Qh4 {[%emt 0:04:47]} Qc7 {[%emt 0:01:55]} 22. f4 $11 {[%emt 0:03:20]} (22. Be4 $5 {[%cal Re4a8]} Rac8 23. f4 $14) 22... Rad8 {[%emt 0:11:01]} 23. Bc2 {[%emt 0:04:26]} f6 {[%emt 0:03:36]} 24. Qg4 {[%emt 0:04:24]} Rxd1 {[%emt 0:03:24]} 25. Rxd1 {[%emt 0:06:37]} fxe5 {[%emt 0:01:44]} 26. Nh4 {[%emt 0:10:29]} Nexf4 {[%emt 0:06:55]} 27. Ng2 {[%emt 0:11:41]} Qc8 {[%emt 0:03:02]} 28. Qf3 {[%emt 0:02:21]} Qh3 {[%emt 0:00:42]} 29. Qxh3 {[%emt 0:01:01]} Nxh3+ {[%emt 0:00:06]} 30. Kf1 {[%emt 0:00:05]} g5 {[%emt 0:01:19]} 31. Bf5 {[%emt 0:00:40]} N5f4 {[%emt 0:00:36]} 32. Nxf4 {[%emt 0:00:58]} Nxf4 {[%emt 0:00:14]} 33. Bxg5 {[%emt 0:00:36]} Rf8 {[%emt 0:00:36]} 34. Be4 {[%emt 0:02:07]} Bf6 {[%emt 0:00:35]} 35. Bh6 {[%emt 0:01:17]} Rb8 {[%emt 0:00:27]} 36. Rd7 {[%emt 0:01:20]} Bh4 {[%emt 0:00:36]} 37. f3 {[%emt 0:03:28]} b4 {[%emt 0:00:30]} 38. c4 {[%emt 0:00:51]} Bf6 {[%emt 0:00:31]} 39. b3 {[%emt 0:01:10]} Rb6 {[%emt 0:00:26]} 40. Rd8+ {[%emt 0:00:59]} Kf7 {[%emt 0:00:05]} 41. Bxh7 {[%emt 0:00:18]} Bh4 {[%emt 0:00:59]} 42. Rf8+ {[%emt 0:03:13]} Ke6 {[%emt 0:00:17]} 43. Bxf4 {[%emt 0:00:55]} exf4 {[%emt 0:00:07]} 44. Rxf4 {[%emt 0:00:04]} Bf6 {[%emt 0:00:21]} 45. Be4 {[%emt 0:00:45]} Ke5 {[%emt 0:01:13]} 46. Rf5+ {[%emt 0:00:47]} Kd4 {[%emt 0:00:10]} 47. Rd5+ {[%emt 0:00:16]} Ke3 {[%emt 0:00:38]} 48. Rxc5 {[%emt 0:00:37]} Bd4 {[%emt 0:00:33]} 49. Rc6 {[%emt 0:03:09]} Rb8 {[%emt 0:00:38]} 50. Rxa6 {[%emt 0:00:18]} Rh8 {[%emt 0:00:28]} 51. Kg2 {[%emt 0:00:06]} Be5 {[%emt 0:00:26]} 52. h3 {[%emt 0:00:16]} Bf6 {[%emt 0:00:05]} 53. Re6 {[%emt 0:00:43]} Rg8+ {[%emt 0:00:27]} 54. Kf1 {[%emt 0:00:08]} Kd2 {[%emt 0:00:34]} 55. Bd5 {[%emt 0:00:32]} Rg3 {[%emt 0:00:36]} 56. Re2+ {[%emt 0:00:35]} Kd1 {[%emt 0:00:28]} 57. Rh2 {[%emt 0:00:50]} Bd4 {[%emt 0:00:40]} 58. Rh1 {[%emt 0:00:46]} Rg6 {[%emt 0:00:42]} 59. Be4 {[%emt 0:01:47]} Ra6 {[%emt 0:00:39]} 60. Bb1 {[%emt 0:01:54]} Rf6 {[%emt 0:00:29]} 61. Kg2+ {[%emt 0:00:31]} Ke2 {[%emt 0:00:07]} 62. Rf1 {[%emt 0:01:05]} Rf7 {[%emt 0:00:41]} 63. Rc1 {[%emt 0:01:15]} Rg7+ {[%emt 0:00:28]} 64. Kh1 {[%emt 0:00:36]} Be3 {[%emt 0:00:36]} 65. Rc2+ {[%emt 0:03:17]} Kxf3 {[%emt 0:00:22]} 66. Kh2 {[%emt 0:01:15]} Rg1 {[%emt 0:00:37]} 67. c5 {[%emt 0:00:30]} Rxb1 {[%emt 0:00:22]} 0-1

[Event "58th BRA-chW 2019"]
[Site "Rio de Janeiro"]
[Date "2019.02.17"]
[Round "1.2"]
[White "Mello, Amanda Carolina De"]
[Black "Medeiros, Thauane Ferreira"]
[Result "0-1"]
[ECO "E18"]
[WhiteElo "1808"]
[BlackElo "1947"]
[Annotator "NA"]
[PlyCount "100"]
[EventDate "2019.02.16"]
[EventType "k.o."]
[EventCountry "BRA"]
[SourceTitle "playchess.com"]
[Source "ChessBase"]
[SourceQuality "1"]
[TimeControl "5400+30"]

1. Nf3 {[%emt 0:00:00]} b6 {[%emt 0:00:00]} 2. g3 {[%emt 0:00:00]} Bb7 {[%emt 0:00:00]} 3. Bg2 {[%emt 0:00:04]} Nf6 {[%emt 0:01:44]} 4. c4 {[%emt 0:01:15]} e6 {[%emt 0:00:13]} 5. Nc3 {[%emt 0:02:45]} Be7 {[%emt 0:00:57]} 6. d4 {[%emt 0:04:38]} Ne4 {[%emt 0:07:25]} 7. Nxe4 {[%emt 0:09:57]} Bxe4 {[%emt 0:00:06]} 8. d5 {[%emt 0:01:17]} O-O {[%emt 0:17:40]} 9. O-O {[%emt 0:09:53]} Bf6 {[%emt 0:01:17]} 10. Nh4 {[%emt 0:10:43]} Bxg2 {[%emt 0:02:47]} 11. Nxg2 {[%emt 0:00:03]} Re8 {[%emt 0:11:49]} 12. Ne3 {[%emt 0:05:24]} d6 {[%emt 0:04:23]} 13. Ng4 {[%emt 0:05:36]} a5 {[%emt 0:04:51]} 14. a3 {[%emt 0:09:38]} a4 {[%emt 0:03:14]} 15. Rb1 {[%emt 0:03:54]} h5 {[%emt 0:01:33]} 16. Nxf6+ {[%emt 0:00:23]} Qxf6 {[%emt 0:00:04]} 17. h4 $17 {[%emt 0:01:15]} exd5 {[%emt 0:01:19]} 18. cxd5 {[%emt 0:01:19]} Qe5 {[%emt 0:00:18]} 19. Be3 {[%emt 0:08:25]} Ra5 {[%emt 0:04:48]} 20. Qc2 {[%emt 0:00:34]} Qxd5 {[%emt 0:00:27]} 21. Qxc7 {[%emt 0:00:55]} Qc6 {[%emt 0:04:07]} 22. Bxb6 {[%emt 0:03:53]} Rb5 {[%emt 0:00:18]} 23. Qxc6 {[%emt 0:00:30]} Nxc6 {[%emt 0:00:03]} 24. Be3 {[%emt 0:00:28]} Ne5 {[%emt 0:00:55]} 25. Rfc1 {[%emt 0:03:37]} Ng4 {[%emt 0:01:25]} 26. Rc3 {[%emt 0:01:08]} Nxe3 {[%emt 0:05:37]} 27. Rxe3 {[%emt 0:00:46]} Rxe3 {[%emt 0:01:29]} 28. fxe3 {[%emt 0:00:03]} Rb3 {[%emt 0:00:06]} 29. Kf2 {[%emt 0:00:16]} Kf8 {[%emt 0:00:04]} 30. Rd1 {[%emt 0:02:27]} Rxb2 {[%emt 0:02:56]} 31. Rxd6 {[%emt 0:00:09]} Rb3 {[%emt 0:06:18]} 32. Rd3 {[%emt 0:00:24]} Ke7 {[%emt 0:00:12]} 33. e4 {[%emt 0:02:47]} Ke6 {[%emt 0:01:08]} 34. Ke3 {[%emt 0:00:39]} Rb5 {[%emt 0:02:06]} 35. Kf4 {[%emt 0:04:13]} f6 {[%emt 0:00:26]} 36. Rd4 {[%emt 0:01:08]} g5+ {[%emt 0:00:41]} 37. hxg5 {[%emt 0:00:21]} fxg5+ {[%emt 0:00:05]} 38. Kf3 {[%emt 0:01:35]} Rb3+ {[%emt 0:01:11]} 39. Rd3 {[%emt 0:00:06]} Ke5 {[%emt 0:00:45]} 40. Ke3 {[%emt 0:01:14]} h4 {[%emt 0:00:37]} 41. gxh4 {[%emt 0:04:53]} gxh4 {[%emt 0:00:05]} 42. Kf3 {[%emt 0:00:44]} h3 {[%emt 0:00:45]} 43. Kf2 {[%emt 0:01:06]} Kxe4 {[%emt 0:00:19]} 44. Rf3 {[%emt 0:00:24]} Rxf3+ {[%emt 0:00:18]} 45. exf3+ {[%emt 0:00:07]} Kf4 {[%emt 0:00:03]} 46. Kg1 {[%emt 0:01:19]} Kxf3 {[%emt 0:00:06]} 47. Kh2 {[%emt 0:00:04]} Ke3 {[%emt 0:00:13]} 48. Kxh3 {[%emt 0:00:33]} Kd3 {[%emt 0:00:03]} 49. Kg3 {[%emt 0:00:06]} Kc3 {[%emt 0:00:04]} 50. Kf3 {[%emt 0:00:03]} Kb3 {[%emt 0:00:04]} 0-1

[Event "58th BRA-chW 2019"]
[Site "Rio de Janeiro"]
[Date "2019.02.17"]
[Round "1.2"]
[White "Hubner, Jessica Trindade"]
[Black "Ichimura G. Barbosa, Larissa Y."]
[Result "0-1"]
[ECO "E94"]
[WhiteElo "1790"]
[BlackElo "1983"]
[Annotator "NA"]
[PlyCount "66"]
[EventDate "2019.02.16"]
[EventType "k.o."]
[EventCountry "BRA"]
[SourceTitle "playchess.com"]
[Source "ChessBase"]
[SourceQuality "1"]
[TimeControl "5400+30"]

1. Nf3 {[%emt 0:00:00]} Nf6 {[%emt 0:00:00]} 2. c4 {[%emt 0:00:00]} g6 {[%emt 0:00:25]} 3. d4 {[%emt 0:00:00]} Bg7 {[%emt 0:00:25]} 4. Nc3 {[%emt 0:00:07]} O-O {[%emt 0:00:33]} 5. e4 {[%emt 0:00:12]} d6 {[%emt 0:00:34]} 6. Be2 {[%emt 0:00:23]} e5 {[%emt 0:00:53]} 7. d5 {[%emt 0:01:50]} Na6 {[%emt 0:03:32]} 8. O-O {[%emt 0:02:15]} Nc5 {[%emt 0:01:02]} 9. Bg5 {[%emt 0:03:11]} a5 {[%emt 0:04:20]} 10. Nd2 {[%emt 0:03:03]} h6 {[%emt 0:04:07]} 11. Be3 {[%emt 0:00:44] E94: King's Indian: Classical: 6 Be2 e5 7 0-0: Various Black 7th moves} Bd7 {[%emt 0:01:19]} (11... Nh7 12. a3 f5 13. b4 axb4 14. axb4 Rxa1 15. Qxa1 Na6 16. Qa3 f4 17. Ba7 g5 18. c5 g4 {0-1 (40) Dominguez Perez,L (2732)-Mamedov,R (2650) Huaian 2016}) 12. f4 $146 {[%emt 0:21:13]} ({Predecessor:} 12. b3 Nh7 13. a3 Qe8 14. b4 axb4 15. axb4 Na4 16. Nxa4 Bxa4 17. Qb1 {1-0 (45) Beshukov,S (2404)-Voltolini,G (2072) Porto Mannu 2017}) 12... exf4 {[%emt 0:07:06]} 13. Rxf4 {[%emt 0:00:26]} g5 {[%emt 0:03:31]} 14. Rf1 {[%emt 0:00:32]} Qe7 {[%emt 0:02:05]} 15. Bxc5 {[%emt 0:00:24]} dxc5 {[%emt 0:00:10]} 16. Bd3 {[%emt 0:00:57]} Ng4 {[%emt 0:02:22]} 17. Qe2 {[%emt 0:04:25]} Bd4+ {[%emt 0:10:34]} 18. Kh1 {[%emt 0:00:17]} Ne3 {[%emt 0:01:12]} 19. Rfc1 {[%emt 0:02:02]} Bg4 {[%emt 0:01:22]} 20. Nf3 {[%emt 0:00:35]} Qf6 {[%emt 0:09:38]} 21. Rab1 {[%emt 0:18:42] [#]} Qf4 $1 {[%emt 0:03:39]} 22. Re1 {[%emt 0:02:42]} (22. h3 $17 Bh5 23. g4) 22... Rae8 {[%emt 0:02:04]} 23. Nb5 {[%emt 0:04:54]} Nf5 {[%emt 0:01:19]} 24. Qd2 {[%emt 0:04:29]} Be3 {[%emt 0:04:10]} 25. Qe2 {[%emt 0:00:35]} Bd4 {[%emt 0:00:19]} 26. Qd2 {[%emt 0:07:50]} Be3 {[%emt 0:00:06]} 27. Qd1 {[%emt 0:00:42]} Nh4 {[%emt 0:01:34]} 28. Rf1 {[%emt 0:00:39]} Nxf3 {[%emt 0:07:48]} 29. gxf3 {[%emt 0:00:25]} Bh3 {[%emt 0:00:46]} 30. Re1 {[%emt 0:02:53]} (30. Nc3 {was worth a try.}) 30... Bf2 {[%emt 0:01:33]} 31. Qe2 {[%emt 0:00:32]} (31. Bf1 $142 Bxe1 32. Bxh3) 31... Bxe1 {[%emt 0:00:36]} 32. Rxe1 {[%emt 0:00:11]} f5 $19 {[%emt 0:00:43]} 33. e5 {[%emt 0:03:39]} Rxe5 {[%emt 0:00:20]} 0-1